bitfinex-derivatives/quotes_BTCF0:USTF0_20210706
["timestamp","ask_amount","ask_price","bid_price","bid_amount"]
[1625566556630,0.87250692,33924.0,33922.0,0.42358]
[1625566556931,0.24057544,33924.0,33922.0,0.0746386]
[1625566557031,0.24057544,33924.0,33922.0,0.0156386]
[1625566557132,0.24057544,33924.0,33922.0,0.0746386]
[1625566557232,0.24057544,33924.0,33922.0,0.0156386]
[1625566557333,0.24057544,33924.0,33922.0,0.0746386]
[1625566557632,0.24057544,33924.0,33922.0,0.0156386]
[1625566557733,0.29957544,33924.0,33920.0,0.24057544]
[1625566557934,0.29957544,33924.0,33920.0,0.29957544]
[1625566558034,0.29957544,33924.0,33920.0,0.24057544]
[1625566558336,0.24057544,33921.0,33920.0,0.24057544]
[1625566558586,0.29957544,33921.0,33920.0,0.24057544]
[1625566558688,0.29957544,33921.0,33920.0,0.29957544]
[1625566559088,0.29957544,33921.0,33920.0,0.24057544]
[1625566559188,0.29957544,33921.0,33920.0,0.29957544]
[1625566559287,0.29957544,33921.0,33920.0,0.24057544]
[1625566560140,0.24057544,33921.0,33920.0,0.24057544]
[1625566560641,0.24057544,33921.0,33920.0,0.29957544]
[1625566560943,0.32857544,33921.0,33920.0,0.29957544]
[1625566561041,0.24057544,33921.0,33920.0,0.29957544]
[1625566562194,0.24057544,33921.0,33920.0,0.24057544]
[1625566562399,0.24057544,33921.0,33920.0,0.29957544]
[1625566563249,0.64678544,33921.0,33920.0,0.24057544]
[1625566563354,0.64678544,33921.0,33916.0,0.24057544]
[1625566563360,0.70578544,33921.0,33916.0,0.24057544]
[1625566563999,0.64678544,33921.0,33916.0,0.24057544]
[1625566564450,0.64678544,33921.0,33900.0,0.057]
[1625566564451,0.48115088,33917.0,33909.0,0.48115088]
[1625566564557,0.48115088,33917.0,33916.0,0.059]
[1625566566402,0.48115088,33917.0,33916.0,0.29957544]
[1625566570219,0.48115088,33917.0,33916.0,0.35857544]
[1625566570319,0.48115088,33917.0,33916.0,0.29957544]
[1625566570423,0.48115088,33917.0,33916.0,0.059]
[1625566570520,0.54015088,33917.0,33909.0,0.48115088]
[1625566570722,0.54015088,33917.0,33909.0,0.54015088]
[1625566570723,0.059,33915.0,33909.0,0.54015088]
[1625566571921,0.118,33915.0,33909.0,0.54015088]
[1625566572123,0.118,33915.0,33909.0,0.48115088]
[1625566572124,0.177,33915.0,33909.0,0.48115088]
[1625566572322,0.177,33915.0,33909.0,0.24057544]
[1625566572423,0.177,33915.0,33902.0,0.24057544]
[1625566572424,0.72172632,33910.0,33902.0,0.24057544]
[1625566572523,1.02284632,33910.0,33902.0,0.24057544]
[1625566572622,1.14084632,33910.0,33902.0,0.24057544]
[1625566573125,1.14084632,33910.0,33899.0,0.9965]
[1625566573431,0.003,33903.0,33899.0,0.9965]
[1625566573526,0.28872,33903.0,33899.0,0.9965]
[1625566573626,0.22972,33903.0,33899.0,0.9965]
[1625566573829,0.22972,33903.0,33899.0,1.1145]
[1625566574031,0.003,33903.0,33899.0,1.1145]
[1625566574531,0.003,33903.0,33902.0,0.70946088]
[1625566574630,0.003,33903.0,33902.0,0.82746088]
[1625566575183,0.003,33903.0,33902.0,0.34631]
[1625566575485,0.003,33903.0,33902.0,0.28731]
[1625566575590,0.003,33903.0,33902.0,0.059]
[1625566575691,0.003,33903.0,33899.0,0.9965]
[1625566576486,0.48115088,33900.0,33899.0,0.9965]
[1625566576589,0.70595088,33900.0,33898.0,0.005]
[1625566576786,0.70595088,33900.0,33898.0,0.064]
[1625566577286,0.70595088,33900.0,33894.0,0.16357544]
[1625566577488,0.76495088,33900.0,33894.0,0.22257544]
[1625566577687,0.54015088,33900.0,33894.0,0.22257544]
[1625566578540,0.24057544,33895.0,33894.0,0.22257544]
[1625566578739,0.24057544,33895.0,33894.0,0.16357544]
[1625566578938,0.24057544,33895.0,33894.0,0.22257544]
[1625566579139,0.24057544,33895.0,33894.0,0.28157544]
[1625566582810,0.24057544,33895.0,33894.0,0.22257544]
[1625566582905,0.24057544,33895.0,33894.0,0.16357544]
[1625566584403,0.29957544,33895.0,33894.0,0.16357544]
[1625566584504,0.60136544,33895.0,33894.0,0.16357544]
[1625566584602,0.66036544,33895.0,33894.0,0.16357544]
[1625566585452,0.54236544,33895.0,33894.0,0.16357544]
[1625566587055,0.54236544,33895.0,33891.0,0.24057544]
[1625566587155,0.54236544,33895.0,33891.0,0.059]
[1625566587256,0.60136544,33895.0,33891.0,0.059]
[1625566587356,0.60136544,33895.0,33890.0,0.003]
[1625566587455,0.66036544,33895.0,33890.0,0.003]
[1625566587755,0.54236544,33895.0,33890.0,0.003]
[1625566587857,0.54236544,33895.0,33890.0,0.062]
[1625566587858,0.24057544,33895.0,33890.0,0.062]
[1625566588207,0.29957544,33895.0,33890.0,0.062]
[1625566588609,0.48115088,33891.0,33890.0,0.062]
[1625566589158,0.48115088,33891.0,33890.0,0.003]
[1625566589260,0.54015088,33891.0,33890.0,0.003]
[1625566589959,0.48115088,33891.0,33890.0,0.003]
[1625566590460,0.54015088,33891.0,33890.0,0.003]
[1625566591365,0.59915088,33891.0,33890.0,0.003]
[1625566591961,0.54015088,33891.0,33890.0,0.003]
[1625566595168,0.54015088,33891.0,33890.0,0.062]
[1625566595369,0.48115088,33891.0,33890.0,0.062]
[1625566595520,0.48115088,33891.0,33890.0,0.003]
[1625566596169,0.48115088,33891.0,33890.0,0.062]
[1625566596521,0.48115088,33891.0,33890.0,0.003]
[1625566597372,0.48115088,33891.0,33890.0,0.062]
[1625566598121,0.24057544,33891.0,33890.0,0.062]
[1625566598622,0.24057544,33891.0,33890.0,0.30257544]
[1625566599374,0.24057544,33891.0,33890.0,0.29957544]
[1625566599674,0.24057544,33891.0,33890.0,0.35857544]
[1625566600224,0.24157544,33895.0,33890.0,0.35857544]
[1625566600726,0.24157544,33895.0,33894.0,0.24057544]
[1625566600829,0.24157544,33895.0,33894.0,0.56554544]
[1625566601025,0.24157544,33895.0,33894.0,0.62454544]
[1625566601126,0.001,33895.0,33894.0,0.62454544]
[1625566603933,0.001,33895.0,33894.0,1.12454544]
[1625566604035,0.001,33895.0,33894.0,1.21244544]
[1625566604134,0.001,33895.0,33894.0,1.41244544]
[1625566604495,0.001,33895.0,33894.0,2.10205293]
[1625566604586,0.001,33895.0,33894.0,1.51415293]
[1625566604687,0.001,33895.0,33894.0,1.51764179]
[1625566604885,0.001,33895.0,33894.0,1.51415293]
[1625566605086,0.001,33895.0,33894.0,2.54857031]
[1625566605187,0.001,33895.0,33894.0,2.55205912]
[1625566605288,0.001,33895.0,33894.0,1.51764174]
[1625566605989,0.001,33895.0,33894.0,2.5521143]
[1625566606291,0.001,33895.0,33894.0,1.51415293]
[1625566606545,0.001,33895.0,33894.0,2.54979855]
[1625566607294,0.001,33895.0,33894.0,2.55328749]
[1625566607496,0.001,33895.0,33894.0,3.76147765]
[1625566607594,0.001,33895.0,33894.0,3.75798871]
[1625566607844,0.001,33895.0,33894.0,3.76147756]
[1625566608144,0.001,33895.0,33894.0,3.75798871]
[1625566608244,0.001,33895.0,33894.0,3.55798871]
[1625566608345,0.001,33895.0,33894.0,2.34979855]
[1625566608545,0.001,33895.0,33894.0,3.56029229]
[1625566608746,0.001,33895.0,33894.0,2.34979855]
[1625566608996,0.001,33895.0,33894.0,3.56029818]
[1625566609546,0.001,33895.0,33894.0,2.34979855]
[1625566610897,0.001,33895.0,33894.0,2.08382855]
[1625566613252,0.001,33895.0,33894.0,3.2968429]
[1625566613453,0.001,33895.0,33894.0,2.08382855]
[1625566614304,0.001,33895.0,33894.0,3.29697588]
[1625566614555,0.001,33895.0,33894.0,2.08382855]
[1625566615455,0.001,33895.0,33894.0,2.29967855]
[1625566615914,0.001,33895.0,33894.0,4.89903776]
[1625566616206,0.001,33895.0,33894.0,4.98713776]
[1625566618161,0.001,33899.0,33894.0,4.98713776]
[1625566618460,0.001,33899.0,33898.0,2.94621769]
[1625566618561,0.001,33899.0,33898.0,3.00521769]
[1625566618661,0.001,33899.0,33898.0,3.06421769]
[1625566618760,0.001,33899.0,33898.0,1.85106923]
[1625566618860,0.001,33899.0,33898.0,2.09164467]
[1625566618964,0.001,33899.0,33898.0,3.3047753]
[1625566625529,0.001,33899.0,33898.0,3.30826425]
[1625566626179,0.001,33899.0,33898.0,4.69517157]
[1625566626331,0.001,33903.0,33898.0,4.69517157]
[1625566626430,0.001,33903.0,33902.0,1.73358251]
[1625566626530,0.001,33903.0,33902.0,1.99670251]
[1625566626629,0.001,33903.0,33902.0,2.11470251]
[1625566626729,0.001,33903.0,33902.0,1.07458567]
[1625566626979,0.001,33903.0,33902.0,1.31516111]
[1625566627180,0.001,33903.0,33902.0,2.35535068]
[1625566627380,0.001,33903.0,33902.0,2.35883939]
[1625566627883,0.001,33903.0,33902.0,2.35535068]
[1625566628482,0.001,33903.0,33902.0,2.3588394]
[1625566628881,0.001,33903.0,33902.0,3.57263141]
[1625566630135,0.001,33903.0,33902.0,3.66033141]
[1625566630250,0.001,33903.0,33902.0,3.86033141]
[1625566630487,0.001,33903.0,33902.0,5.25676124]
[1625566630686,0.001,33903.0,33902.0,5.2476134]
[1625566631045,0.001,33903.0,33902.0,5.25326908]
[1625566631243,0.001,33903.0,33902.0,6.81679109]
[1625566631441,0.001,33903.0,33902.0,6.80764669]
[1625566631546,0.001,33903.0,33902.0,5.24761267]
[1625566631950,0.001,33903.0,33902.0,5.25675586]
[1625566632043,0.001,33903.0,33902.0,6.81665026]
[1625566632142,0.64578106,33918.0,33902.0,7.25974726]
[1625566632241,0.004,33918.0,33902.0,7.25974726]
[1625566632340,0.004,33918.0,33903.0,0.00914159]
[1625566632440,0.004,33918.0,33903.0,0.06814159]
[1625566632542,0.004,33918.0,33904.0,0.2]
[1625566632643,0.004,33918.0,33914.0,0.97863699]
[1625566632741,0.004,33918.0,33914.0,1.09663699]
[1625566632841,0.004,33918.0,33914.0,0.4034]
[1625566633041,0.004,33918.0,33917.0,0.48115088]
[1625566633141,0.004,33918.0,33917.0,0.54015088]
[1625566633690,0.0213464,33918.0,33917.0,0.54015088]
[1625566634542,0.004,33918.0,33917.0,0.54015088]
[1625566635945,0.004,33918.0,33917.0,0.59915088]
[1625566638502,0.003,33918.0,33917.0,0.59915088]
[1625566640558,0.003,33918.0,33917.0,1.49065565]
[1625566641111,0.003,33918.0,33917.0,1.73123109]
[1625566641461,0.003,33918.0,33917.0,1.03972632]
[1625566641861,0.003,33918.0,33917.0,1.73087376]
[1625566642112,0.003,33918.0,33917.0,2.24915121]
[1625566642615,0.003,33918.0,33917.0,1.55800377]
[1625566643414,0.003,33918.0,33917.0,1.35800377]
[1625566643615,0.003,33918.0,33917.0,0.83972632]
[1625566645019,0.33185,33918.0,33917.0,0.83972632]
[1625566645119,0.33185,33918.0,33917.0,0.78072632]
[1625566645569,0.33185,33918.0,33917.0,0.83972632]
[1625566645792,0.33185,33918.0,33917.0,0.059]
[1625566645883,0.33185,33918.0,33912.0,1.20858614]
[1625566645974,0.33185,33918.0,33911.0,1.03594704]
[1625566645975,0.33185,33918.0,33911.0,0.51803891]
[1625566646070,0.33185,33918.0,33912.0,0.118]
[1625566647091,0.33185,33918.0,33917.0,0.24057544]
[1625566647189,0.33185,33918.0,33912.0,0.118]
[1625566647190,0.39085,33918.0,33912.0,0.059]
[1625566647288,0.39085,33918.0,33911.0,0.24057544]
[1625566647377,0.39085,33918.0,33912.0,0.059]
[1625566647793,0.33185,33918.0,33912.0,0.059]
[1625566647872,0.33185,33918.0,33912.0,0.118]
[1625566648373,0.33185,33918.0,33912.0,0.059]
[1625566648473,0.39085,33918.0,33912.0,0.059]
[1625566649074,0.48115088,33913.0,33912.0,0.059]
[1625566650680,0.54015088,33913.0,33912.0,0.059]
[1625566650888,0.54015088,33913.0,33908.0,0.24057544]
[1625566650989,0.59915088,33913.0,33908.0,0.24057544]
[1625566651085,0.24057544,33909.0,33908.0,0.24057544]
[1625566651288,0.56676544,33909.0,33908.0,0.24057544]
[1625566651377,0.62576544,33909.0,33908.0,0.24057544]
[1625566651779,0.62576544,33909.0,33904.0,0.24057544]
[1625566651981,0.64310541,33909.0,33904.0,0.24057544]
[1625566652283,0.62576544,33909.0,33904.0,0.24057544]
[1625566652684,0.56676544,33909.0,33904.0,0.24057544]
[1625566653085,0.24057544,33905.0,33904.0,0.24057544]
[1625566653283,0.29957544,33905.0,33904.0,0.24057544]
[1625566653635,0.29957544,33905.0,33901.0,0.24157544]
[1625566653738,0.29957544,33905.0,33901.0,0.30057544]
[1625566655140,0.24057544,33902.0,33901.0,0.30057544]
[1625566655995,0.24057544,33902.0,33901.0,0.81979528]
[1625566656392,0.24057544,33902.0,33901.0,0.82279528]
[1625566656492,0.24057544,33902.0,33901.0,1.51543066]
[1625566656691,0.24057544,33902.0,33901.0,2.55449263]
[1625566658244,0.24057544,33902.0,33901.0,2.61349263]
[1625566658597,0.24057544,33902.0,33901.0,3.8263413]
[1625566660098,0.24057544,33902.0,33901.0,3.7673413]
[1625566660398,0.24057544,33902.0,33901.0,3.8263413]
[1625566660498,0.24057544,33902.0,33901.0,2.89385263]
[1625566660798,0.24057544,33902.0,33901.0,4.16606576]
[1625566661451,0.24057544,33902.0,33901.0,2.95285263]
[1625566661850,0.24057544,33902.0,33901.0,4.16606844]
[1625566662303,0.24057544,33902.0,33901.0,4.16206844]
[1625566662853,0.24057544,33902.0,33901.0,5.54885828]
[1625566663253,0.24057544,33902.0,33901.0,4.16206844]
[1625566663653,0.24057544,33905.0,33901.0,4.16206844]
[1625566663779,0.001,33910.0,33901.0,4.16206844]
[1625566663780,0.001,33910.0,33901.0,5.54880499]
[1625566663956,0.001,33910.0,33902.0,0.00914531]
[1625566664058,0.001,33910.0,33909.0,2.25320875]
[1625566664155,0.001,33910.0,33909.0,2.54532875]
[1625566664256,0.001,33910.0,33909.0,2.66332875]
[1625566664358,0.001,33910.0,33909.0,3.87648717]
[1625566664564,0.001,33910.0,33909.0,5.2628874]
[1625566665207,0.001,33910.0,33909.0,5.98461372]
[1625566667011,0.001,33910.0,33909.0,6.18461372]
[1625566667112,0.001,33910.0,33909.0,6.19375457]
[1625566667215,0.001,33910.0,33909.0,7.75323338]
[1625566667762,0.001,33910.0,33909.0,7.55323338]
[1625566667869,0.001,33910.0,33909.0,5.98461372]
[1625566668163,0.001,33910.0,33909.0,7.54400848]
[1625566668463,0.001,33910.0,33909.0,5.98461372]
[1625566671774,0.001,33910.0,33909.0,4.59821349]
[1625566672071,0.001,33910.0,33909.0,5.98463001]
[1625566672570,0.001,33910.0,33909.0,4.59821349]
[1625566672872,0.001,33910.0,33909.0,3.38505507]
[1625566673573,0.002,33912.0,33909.0,3.38505507]
[1625566673773,0.002,33912.0,33911.0,0.51996408]
[1625566673873,0.002,33912.0,33911.0,0.57896408]
[1625566674077,0.002,33912.0,33911.0,2.31255436]
[1625566674375,0.002,33912.0,33911.0,1.27240019]
[1625566674575,0.002,33912.0,33911.0,0.059]
[1625566675277,0.24257544,33912.0,33911.0,0.059]
[1625566677929,0.24257544,33912.0,33911.0,1.27300814]
[1625566678130,0.24257544,33912.0,33911.0,0.5792892]
[1625566678431,0.24257544,33912.0,33911.0,0.059]
[1625566681140,0.56671884,33912.0,33911.0,0.059]
[1625566682394,0.24257544,33912.0,33911.0,0.059]
[1625566682694,0.24257544,33912.0,33911.0,0.57942567]
[1625566682893,0.24257544,33912.0,33911.0,1.27336454]
[1625566683696,0.24257544,33912.0,33911.0,0.40597052]
[1625566683895,0.24257544,33912.0,33911.0,0.92642213]
[1625566684446,0.24257544,33912.0,33911.0,0.40597052]
[1625566684945,0.24257544,33912.0,33911.0,0.92652749]
[1625566685146,0.24257544,33912.0,33911.0,0.57955697]
[1625566685446,0.24257544,33912.0,33911.0,0.92659541]
[1625566686199,0.24257544,33912.0,33911.0,1.27367938]
[1625566686648,0.24257544,33912.0,33911.0,0.57955697]
[1625566686898,0.24257544,33912.0,33911.0,0.92665407]
[1625566687198,0.24257544,33912.0,33911.0,0.57955697]
[1625566687399,0.24257544,33912.0,33911.0,0.92665441]
[1625566688150,0.24057544,33912.0,33911.0,0.92665441]
[1625566689556,0.25791666,33912.0,33911.0,0.92665441]
[1625566690256,0.25791666,33912.0,33911.0,0.40609744]
[1625566690773,0.31691666,33912.0,33911.0,0.40609744]
[1625566690874,0.31691666,33912.0,33911.0,0.34709744]
[1625566691007,1.45018725,33912.0,33910.0,0.69419396]
[1625566691107,2.42144643,33912.0,33908.0,0.34816092]
[1625566691209,2.48044643,33912.0,33908.0,0.34816092]
[1625566691309,1.13258512,33909.0,33908.0,0.001]
[1625566691408,1.613736,33909.0,33908.0,0.001]
[1625566691508,1.672736,33909.0,33908.0,0.001]
[1625566691860,1.34937712,33909.0,33908.0,0.001]
[1625566692564,0.86396039,33909.0,33908.0,0.001]
[1625566692815,0.54015088,33909.0,33908.0,0.34813947]
[1625566693267,0.48115088,33909.0,33908.0,0.34813947]
[1625566693370,0.80501777,33909.0,33908.0,0.001]
[1625566693568,1.29067355,33909.0,33908.0,0.001]
[1625566693668,1.30801171,33909.0,33908.0,0.001]
[1625566693819,1.29067355,33909.0,33908.0,0.001]
[1625566694018,1.30801146,33909.0,33908.0,0.001]
[1625566695370,0.82235568,33909.0,33908.0,0.001]
[1625566695470,1.13165568,33909.0,33908.0,0.001]
[1625566695671,1.61761442,33909.0,33908.0,0.001]
[1625566695772,1.67661442,33909.0,33908.0,0.001]
[1625566695874,1.35274753,33909.0,33908.0,0.001]
[1625566696374,2.00060319,33909.0,33908.0,0.001]
[1625566697729,2.97124299,33909.0,33908.0,0.001]
[1625566698527,4.16242247,33909.0,33908.0,0.001]
[1625566698827,4.66242247,33909.0,33908.0,0.001]
[1625566699029,5.95381918,33909.0,33908.0,0.001]
[1625566699129,5.9887127,33909.0,33908.0,0.001]
[1625566699329,5.95381918,33909.0,33908.0,0.001]
[1625566699528,7.40564488,33909.0,33908.0,0.001]
[1625566699880,7.44053913,33909.0,33903.0,0.002]
[1625566700080,6.94053913,33909.0,33903.0,0.002]
[1625566700180,2.09706646,33904.0,33903.0,0.002]
[1625566700281,2.15606646,33904.0,33903.0,0.002]
[1625566700382,2.21506646,33904.0,33903.0,0.002]
[1625566701082,3.34570418,33904.0,33903.0,0.002]
[1625566701482,3.82685506,33904.0,33903.0,0.002]
[1625566701583,5.11922341,33904.0,33903.0,0.002]
[1625566701682,5.61922341,33904.0,33903.0,0.002]
[1625566701782,4.32685506,33904.0,33903.0,0.002]
[1625566701883,3.82685506,33904.0,33903.0,0.002]
[1625566702441,0.59915088,33904.0,33903.0,0.002]
[1625566702538,0.59915088,33904.0,33898.0,0.003]
[1625566702539,0.057,33903.0,33898.0,0.003]
[1625566702835,0.76037403,33899.0,33898.0,0.003]
[1625566702934,0.81937403,33899.0,33898.0,0.003]
[1625566703135,0.83671565,33899.0,33898.0,0.003]
[1625566703337,0.81937403,33899.0,33898.0,0.003]
[1625566703436,1.30052491,33899.0,33898.0,0.003]
[1625566704639,1.24152491,33899.0,33898.0,0.003]
[1625566704739,0.48115088,33899.0,33898.0,0.003]
[1625566704841,0.48115088,33899.0,33898.0,0.062]
[1625566704943,0.48115088,33899.0,33898.0,0.121]
[1625566705040,0.48115088,33899.0,33898.0,3.59105448]
[1625566705289,0.48115088,33899.0,33898.0,4.97899927]
[1625566705492,0.48115088,33899.0,33898.0,5.21957471]
[1625566705792,0.48115088,33899.0,33898.0,6.78088335]
[1625566706693,0.48115088,33899.0,33898.0,6.79004354]
[1625566706944,0.48115088,33899.0,33898.0,6.79353193]
[1625566707244,0.48115088,33899.0,33898.0,6.99353193]
[1625566707643,0.48115088,33899.0,33898.0,6.79353193]
[1625566708044,0.48115088,33899.0,33898.0,7.09172193]
[1625566708845,0.48115088,33899.0,33898.0,7.08823354]
[1625566708996,0.48115088,33899.0,33898.0,7.07907335]
[1625566709097,0.16215143,33909.0,33898.0,7.07907335]
[1625566709298,0.48629916,33910.0,33907.0,0.52051072]
[1625566709498,0.72172632,33908.0,33907.0,0.52051072]
[1625566709599,1.20774827,33908.0,33906.0,0.17350678]
[1625566710098,1.20774827,33908.0,33906.0,0.57955]
[1625566710301,0.72172632,33908.0,33907.0,0.52055649]
[1625566710500,0.72172632,33908.0,33907.0,0.57955649]
[1625566710601,0.72172632,33908.0,33907.0,0.52055649]
[1625566710855,0.72172632,33908.0,33906.0,0.52050767]
[1625566711054,0.72172632,33908.0,33907.0,0.059]
[1625566711158,0.88383518,33908.0,33907.0,0.059]
[1625566711309,0.72172632,33908.0,33907.0,0.57951105]
[1625566711566,0.72272632,33908.0,33907.0,0.57951105]
[1625566712009,0.72272632,33908.0,33907.0,0.52051105]
[1625566712312,0.72272632,33908.0,33906.0,0.52051105]
[1625566712313,1.20890238,33908.0,33906.0,0.52056378]
[1625566712662,1.20890238,33908.0,33906.0,0.57956378]
[1625566712867,0.88483899,33908.0,33906.0,0.57956378]
[1625566713066,0.88483899,33908.0,33906.0,0.52056378]
[1625566713267,0.94383899,33908.0,33906.0,0.52056378]
[1625566713367,1.26792218,33908.0,33906.0,0.52056378]
[1625566713619,0.16209543,33907.0,33905.0,0.52052462]
[1625566713820,0.22109543,33907.0,33905.0,0.52052462]
[1625566713917,0.54509665,33907.0,33905.0,0.52052462]
[1625566714117,0.01733859,33906.0,33905.0,0.52052462]
[1625566714318,2.23856634,33906.0,33902.0,0.17352861]
[1625566714519,0.80868501,33903.0,33901.0,0.001]
[1625566714718,0.86768501,33903.0,33901.0,0.001]
[1625566714818,0.54436745,33903.0,33901.0,0.001]
[1625566715020,0.54436745,33903.0,33901.0,0.1745253]
[1625566715319,0.54436745,33903.0,33901.0,0.001]
[1625566715475,0.24057544,33902.0,33901.0,0.001]
[1625566715582,0.57477544,33902.0,33901.0,0.001]
[1625566715682,0.57477544,33902.0,33901.0,0.17452213]
[1625566715871,0.57477544,33902.0,33901.0,0.86858275]
[1625566716433,0.57477544,33902.0,33901.0,0.52154627]
[1625566716434,0.63377544,33902.0,33901.0,0.52154627]
[1625566716672,0.79558967,33902.0,33901.0,0.001]
[1625566716771,0.81292857,33902.0,33901.0,0.001]
[1625566716971,1.13649652,33902.0,33901.0,0.001]
[1625566717528,1.37707196,33902.0,33901.0,0.001]
[1625566717633,1.35973306,33902.0,33901.0,0.001]
[1625566717739,1.35973306,33902.0,33901.0,0.17449975]
[1625566717740,0.87435088,33902.0,33901.0,0.17449975]
[1625566717930,0.87435088,33902.0,33901.0,0.86849857]
[1625566718126,0.87435088,33902.0,33901.0,0.174498]
[1625566718627,1.03620649,33902.0,33901.0,0.001]
[1625566718980,0.87435088,33902.0,33901.0,0.17449944]
[1625566719177,0.87435088,33902.0,33901.0,0.001]
[1625566720027,0.89167307,33902.0,33901.0,0.001]
[1625566721282,0.89167307,33902.0,33901.0,0.17445948]
[1625566721582,0.87435088,33902.0,33901.0,0.17445948]
[1625566722083,0.87435088,33902.0,33901.0,0.5213738]
[1625566722635,0.87435088,33902.0,33901.0,0.52130735]
[1625566722886,0.87435088,33902.0,33901.0,0.52130719]
[1625566723386,0.87435088,33902.0,33901.0,0.86817827]
[1625566723588,0.87435088,33902.0,33901.0,0.5213073]
[1625566724892,0.87435088,33902.0,33901.0,0.52139637]
[1625566725143,0.87435088,33902.0,33901.0,0.8683276]
[1625566725692,0.87435088,33902.0,33901.0,1.21525047]
[1625566725945,0.48115088,33902.0,33901.0,1.54115047]
[1625566726154,0.48629248,33905.0,33901.0,1.54115047]
[1625566726251,0.64816458,33907.0,33901.0,1.54115047]
[1625566726252,0.64816458,33907.0,33902.0,0.0889]
[1625566726254,0.16228751,33907.0,33902.0,0.0889]
[1625566726446,0.16228751,33907.0,33902.0,0.1479]
[1625566726548,0.16228751,33907.0,33902.0,0.2069]
[1625566726647,0.16228751,33907.0,33906.0,5.0149]
[1625566726749,1.29310206,33908.0,33906.0,5.0149]
[1625566726751,1.29310206,33908.0,33906.0,5.53527731]
[1625566726755,0.48215088,33908.0,33906.0,5.53527731]
[1625566726847,0.001,33908.0,33906.0,5.59427731]
[1625566727049,0.001,33908.0,33907.0,4.85718839]
[1625566727148,0.001,33908.0,33907.0,4.86067661]
[1625566727248,0.002,33913.0,33907.0,4.91967661]
[1625566727447,0.002,33913.0,33907.0,4.9288291]
[1625566727548,0.24257544,33913.0,33912.0,0.48115088]
[1625566727650,0.24257544,33913.0,33912.0,0.84657088]
[1625566727951,0.24257544,33913.0,33912.0,5.70634434]
[1625566728250,0.24257544,33913.0,33912.0,5.70285672]
[1625566728352,0.24057544,33913.0,33912.0,5.70285672]
[1625566728451,0.003,33916.0,33912.0,5.70285672]
[1625566728651,0.003,33916.0,33915.0,3.46775503]
[1625566728753,0.003,33916.0,33915.0,3.52675503]
[1625566728951,0.003,33916.0,33915.0,4.9142422]
[1625566729553,0.003,33916.0,33915.0,5.15481764]
[1625566729957,0.003,33916.0,33915.0,6.71571123]
[1625566730055,0.004,33921.0,33915.0,6.71571123]
[1625566730157,0.004,33921.0,33915.0,5.15481764]
[1625566730255,0.004,33921.0,33915.0,5.21381764]
[1625566730457,0.004,33921.0,33920.0,3.67890031]
[1625566730658,0.004,33921.0,33920.0,3.73790031]
[1625566730958,0.0002,33921.0,33920.0,3.73790031]
[1625566731159,0.0002,33921.0,33920.0,5.12481685]
[1625566731562,0.0002,33921.0,33920.0,5.60596773]
[1625566733511,0.0002,33921.0,33920.0,5.66496773]
[1625566735167,0.0002,33921.0,33920.0,3.06475508]
[1625566735263,0.0002,33921.0,33920.0,2.85241508]
[1625566737271,0.0002,33921.0,33920.0,1.75344699]
[1625566737970,0.0002,33921.0,33920.0,1.05898915]
[1625566738080,0.0002,33921.0,33920.0,1.11798915]
[1625566738220,0.0002,33921.0,33920.0,1.80976704]
[1625566740022,0.0002,33921.0,33920.0,0.94492621]
[1625566740323,0.0002,33921.0,33920.0,1.20425959]
[1625566740721,0.0002,33921.0,33920.0,0.85848426]
[1625566741022,0.0002,33921.0,33920.0,0.59915088]
[1625566741273,0.0002,33921.0,33920.0,0.85848729]
[1625566741422,0.0002,33921.0,33920.0,0.68559635]
[1625566741824,0.0002,33921.0,33920.0,0.59915088]
[1625566742276,0.0002,33921.0,33920.0,0.85848729]
[1625566742477,0.0002,33921.0,33920.0,0.68559635]
[1625566742780,0.0002,33921.0,33920.0,2.02834915]
[1625566743279,0.0002,33921.0,33920.0,3.06520638]
[1625566743979,0.0002,33921.0,33920.0,3.00620638]
[1625566744283,0.0002,33921.0,33920.0,1.96934915]
[1625566744382,0.0002,33921.0,33920.0,1.75016915]
[1625566744481,0.23774,33921.0,33920.0,1.26901827]
[1625566744682,0.23774,33921.0,33920.0,1.21001827]
[1625566744932,0.23774,33921.0,33919.0,0.08740014]
[1625566745131,0.23774,33921.0,33919.0,0.001]
[1625566745681,0.24057544,33920.0,33919.0,0.001]
[1625566745882,0.29957544,33920.0,33919.0,0.001]
[1625566746184,0.24057544,33920.0,33919.0,0.001]
[1625566749142,0.24057544,33920.0,33919.0,0.06]
[1625566749241,0.24057544,33920.0,33919.0,0.001]
[1625566749394,0.24057544,33920.0,33919.0,0.06]
[1625566749492,0.24057544,33920.0,33919.0,0.001]
[1625566749744,0.24057544,33920.0,33919.0,0.24157544]
[1625566751697,0.24057544,33920.0,33919.0,0.30057544]
[1625566753352,0.24057544,33920.0,33919.0,0.38692569]
[1625566754053,0.24057544,33920.0,33919.0,0.69149569]
[1625566754807,0.24057544,33920.0,33919.0,1.12315349]
[1625566755056,0.24057544,33920.0,33919.0,1.20948372]
[1625566755724,0.24057544,33920.0,33919.0,1.26848372]
[1625566755917,0.24057544,33920.0,33919.0,1.87274139]
[1625566756026,0.24057544,33920.0,33919.0,1.87622826]
[1625566756157,0.24057544,33923.0,33919.0,2.91199789]
[1625566756356,0.24057544,33923.0,33922.0,1.20834467]
[1625566756455,0.24057544,33923.0,33922.0,1.32634467]
[1625566756657,0.001,33926.0,33922.0,1.32634467]
[1625566756754,0.001,33926.0,33922.0,1.32983114]
[1625566756855,0.001,33926.0,33925.0,0.08628937]
[1625566756956,0.001,33926.0,33925.0,0.14528937]
[1625566757155,0.001,33926.0,33925.0,0.31786467]
[1625566757254,0.001,33926.0,33925.0,0.32135099]
[1625566757606,0.001,33926.0,33925.0,0.72549456]
[1625566757706,0.001,33926.0,33925.0,1.44722088]
[1625566757905,0.001,33926.0,33925.0,1.36093151]
[1625566758108,0.001,33926.0,33925.0,1.70600747]
[1625566758359,0.001,33926.0,33925.0,1.3608639]
[1625566758809,0.001,33926.0,33925.0,1.70587459]
[1625566759612,0.001,33926.0,33925.0,1.36072995]